Cogmind - Beta 14 @@@ ROGUE MODE // 2025.01.10 @ 20:21:02 Player: Anting Result: Destroyed by as-37726 with Assembled Blade Performance ------------- Evolutions (0) 0 Regions Visited (2) 400 Robots Destroyed (12) 60 Value Destroyed (331) 331 Prototype IDs (0) 0 Alien Tech Used (0) 0 Bonus (0) 0 TOTAL SCORE: 791 Bonus ------- None Cogmind --------- Core Integrity 0/250 Matter 245/300 Energy 100/100 System Corruption 0% Temperature Cool (0) Movement Walking (120) Location -10/Mines Parts ------- > --- POWER (1) -------- (None) > --- PROPULSION (2) --- Aluminum Leg > --- UTILITY (2) ------ Small Storage Unit Seismic Detector > --- WEAPON (2) ------- Grenade Launcher > --- INVENTORY (8) ---- Ion Engine Flight Unit Heat Sink Structural Scanner Power Shielding Peak State ------------ > --- POWER ------------ Light Ion Engine > --- PROPULSION ------- Light Treads Light Treads > --- UTILITY ---------- Small Storage Unit Seismic Detector > --- WEAPON ----------- Assault Rifle Light Assault Rifle > --- INVENTORY -------- Ion Engine [Rating: 7] Favorites ----------- Power Ion Engine Engine Ion Engine Propulsion Light Treads Treads Light Treads Leg Aluminum Leg Utility Small Storage Unit Device Seismic Detector Storage Small Storage Unit Protection Power Shielding Weapon Light Assault Rifle Energy Gun Small Laser Ballistic Gun Light Assault Rifle Launcher Grenade Launcher Build | -11 -10 -10 ------- Run | Yrd Mat Min Slots Evolved . | . . . Power . | . . . Propulsion . | . . . Utility . | . . . Weapon . | . . . Parts Attached 15 | 7 7 1 Power 3 | 1 2 . Engine 3 | 1 2 . Core . | . . . Reactor . | . . . Propulsion 4 | 2 2 . Treads 2 | 2 . . Leg 2 | . 2 . Wheel . | . . . Hover . | . . . Flight . | . . . Utility 4 | 2 2 . Device 2 | 1 1 . Storage 1 | 1 . . Processor . | . . . Hackware . | . . . Protection 1 | . 1 . Artifact . | . . . Weapon 4 | 2 1 1 Energy Gun 1 | . 1 . Energy Cannon . | . . . Ballistic Gun 2 | 2 . . Ballistic Cannon . | . . . Launcher 1 | . . 1 Special Weapon . | . . . Impact Weapon . | . . . Slashing Weapon . | . . . Piercing Weapon . | . . . Special Melee Weapon . | . . . Unidentified Prototypes . | . . . Parts Lost 9 | . 6 3 Power 3 | . 2 1 Propulsion 3 | . 2 1 Utility . | . . . Weapon 3 | . 2 1 Highest Loss Streak 5 | . 5 2 To Critical Strikes . | . . . Average Slot Usage (%) 85 | . 88 76 Engine 10 | . 9 12 Treads 15 | . 19 . Leg 9 | . 6 21 Device 13 | . 12 14 Storage 14 | . 14 14 Energy Gun 5 | . 3 12 Ballistic Gun 15 | . 19 . Peak Build Rating 7 | 7 7 6 Average Rating 5 | 4 6 5 On Entrance 4 | . 7 6 Naked Turns . | . . . Heaviest Build 14 | 12 14 12 Greatest Support 40 | 40 40 20 Greatest Overweight (x) 2 | . 2 1 Average Overweight (x) . | . . . Largest Inventory Capacity 8 | 8 8 8 Average Capacity 7 | 7 8 8 Most Carried 7 | 4 7 6 Average Carried 3 | 1 3 5 Final Capacity 8 | 8 8 8 Final Carried 5 | 1 5 5 Class Distribution -------------------- 65% | Mutant 34% | Scavenger-Mutant Dominant Class ---------------- Mutant | -10/Materials Scavenger-Mutant | -10/Mines Resources | -11 -10 -10 ----------- Run | Yrd Mat Min Matter Collected 414 | 259 128 27 Remotely . | . . . Salvage Created 361 | 14 236 111 Parts 23 | 3 11 9 Haulers Intercepted . | . . . Recyclers Shooed . | . . . Parts Field Recycled . | . . . Retrieved Matter . | . . . Parts Self-Destructed . | . . . Prevented . | . . . Kills | -11 -10 -10 ------- Run | Yrd Mat Min Combat Hostiles Destroyed 16 | . 6 10 Guns 7 | . 6 1 AOE 9 | . . 9 Classes Destroyed 4 | 1 1 2 Tunneler 2 | 1 . 1 Swarmer 3 | . . 3 Grunt 7 | . 6 1 Assembled 6 | . . 6 Best Kill Streak 9 | 1 2 9 Combat Bots Only 9 | . 2 9 Max Kills in Single Turn 4 | 1 1 4 Gunslinging . | . . . Exploded 4 | . . 4 Melee . | . . . Uniques/NPCs Destroyed . | . . . Combat | -11 -10 -10 -------- Run | Yrd Mat Min Hostile Shots Fired 103 | . 72 31 Missed 26 | . 17 9 Damage Taken 1137 | . 768 369 Core 271 | . 128 143 Absorbed by Shields . | . . . Redirected to Shielding 3 | . 3 . Core Remaining (%) 100 | 100 . . Volleys Fired 60 | 3 39 18 Largest 2 | 2 2 1 Hottest 40 | 40 40 40 Shots Fired 84 | 6 60 18 Gun 79 | 6 60 13 Cannon . | . . . Launcher 5 | . . 5 Special . | . . . Kinetic 61 | 6 55 . Thermal 18 | . 5 13 Explosive 5 | . . 5 Electromagnetic . | . . . Robot Hit Streak 8 | 3 8 4 Robot Miss Streak 3 | 2 3 1 Penetration Max . | . . . Secondary Targets 2 | . 2 . Max Gunslinging Chain 1 | . 1 . Shots Hit Robots 60 | 3 46 11 Core Hits 45 | 1 17 27 Critical Kills . | . . . Critical Parts Destroyed . | . . . Critical Strikes . | . . . Melee Attacks . | . . . Impact . | . . . Slashing . | . . . Piercing . | . . . Sneak Attacks . | . . . Combat Hostiles . | . . . Follow-up Attacks . | . . . Damage Inflicted 1073 | 41 461 571 Guns 615 | 41 461 113 Cannons . | . . . Explosions 458 | . . 458 Melee . | . . . Ramming . | . . . Kinetic 459 | 41 418 . Thermal 156 | . 43 113 Explosive 458 | . . 458 Electromagnetic . | . . . Impact . | . . . Slashing . | . . . Piercing . | . . . Highest Corruption . | . . . Average Corruption . | . . . Corruption Purged . | . . . Corruption Blocked . | . . . Overload Shots . | . . . Overflow Damage 6 | . . 6 Projectiles . | . . . Explosions 6 | . . 6 Melee . | . . . Knockbacks . | . . . Impact . | . . . Kinetic . | . . . Secondary . | . . . Self-Inflicted Damage 77 | . . 77 Shots 2 | . . 2 Rammed . | . . . Targets Rammed . | . . . Kicked . | . . . Crushed . | . . . Highest Temperature 99 | . 35 99 Average Temperature 28 | . 11 50 Received Heat Transfer 510 | . 384 126 Siege Activations . | . . . Robots Corrupted . | . . . Combat Hostiles . | . . . Parts Fried . | . . . Impact Corruptions . | . . . Robots Melted . | . . . Combat Hostiles . | . . . Parts Melted 1 | . 1 . Heat Transferred 350 | . 100 250 Parts Sabotaged . | . . . Parts Stolen . | . . . Parts Stripped . | . . . Power Chain Reactions . | . . . Alert | -11 -10 -10 ------- Run | Yrd Mat Min Peak Influence 156 | 5 107 156 Initial 25 | . 3 25 Average 43 | . 45 56 Maximum Alert Level . | . . . Low Security (%) 100 | 100 100 100 Level 1 . | . . . Level 2 . | . . . Level 3 . | . . . Level 4 . | . . . Level 5 . | . . . High Security . | . . . Max Security . | . . . Squads Dispatched 1 | . 1 . Investigation 1 | . 1 . Extermination . | . . . Reinforcement . | . . . Assault . | . . . Garrison . | . . . Intercept . | . . . Searches Triggered . | . . . Construction Impeded . | . . . Haulers Reinforced . | . . . Active Scanning Responses . | . . . Cargo Convoy Interrupts . | . . . Stealth | -11 -10 -10 --------- Run | Yrd Mat Min Distress Signals . | . . . Communications Jammed . | . . . Distress Signals . | . . . Times Spotted 30 | . 12 18 Peak Tracking Total 18 | . 3 18 Tactical Retreats 2 | . 1 1 Traps | -11 -10 -10 ------- Run | Yrd Mat Min Traps Triggered . | . . . Indirectly . | . . . Trap Hack Attempts . | . . . Triggered . | . . . Disarmed . | . . . Reprogrammed . | . . . Reused . | . . . Traps Extracted . | . . . Installed . | . . . Triggered . | . . . Machines | -11 -10 -10 ---------- Run | Yrd Mat Min Machines Disabled 1 | . . 1 Max in Single Turn 1 | . . 1 Machines Repaired . | . . . Machines Dismantled . | . . . Machines Sabotaged . | . . . Overloaded Fab Kills . | . . . Hacking | -11 -10 -10 --------- Run | Yrd Mat Min Machines Accessed 2 | . 2 . Terminals 2 | . 2 . Fabricators . | . . . Repair Stations . | . . . Recycling Units . | . . . Scanalyzers . | . . . Garrison Access . | . . . Total Hacks 5 | . 5 . Successful 2 | . 2 . Failed 3 | . 3 . Catastrophic . | . . . Database Lockouts . | . . . Manual 5 | . 5 . Terminals 5 | . 5 . Fabricators . | . . . Repair Stations . | . . . Recycling Units . | . . . Scanalyzers . | . . . Garrison Access . | . . . Terminal Hacks . | . . . Fabricator Hacks . | . . . Repair Station Hacks . | . . . Recycling Unit Hacks . | . . . Scanalyzer . | . . . Garrison Access Hacks . | . . . Unauthorized Hacks 2 | . 2 . Terminals 2 | . 2 . Botnet 2 | . 2 . Fabricators . | . . . Repair Stations . | . . . Recycling Units . | . . . Scanalyzers . | . . . Garrison Access . | . . . Data Cores Recovered . | . . . Used . | . . . Hacking Detections 1 | . 1 . Full Trace Events 1 | . 1 . Feedback Events . | . . . Feedback Blocked . | . . . Robot Schematics Acquired . | . . . Robots Built . | . . . Authchips . | . . . Time . | . . . Total Robot Build Rating . | . . . Part Schematics Acquired . | . . . Parts Built . | . . . Authchips . | . . . Time . | . . . Total Part Build Rating . | . . . Parts Repaired . | . . . Time . | . . . Parts Recycled . | . . . Recycled Matter . | . . . Retrieved Matter . | . . . Retrieved Components . | . . . Parts Scanalyzed . | . . . Part Schematics Acquired . | . . . Parts Damaged . | . . . Bothacking | -11 -10 -10 ------------ Run | Yrd Mat Min Used RIF Installer . | . . . Robots Hacked . | . . . Non-combat . | . . . Combat . | . . . Robot Hacks Applied . | . . . Relay Couplers Released . | . . . Fabnet Peak Effective % . | . . . Robots Rewired . | . . . Allies Hacked . | . . . Hacks Repelled . | . . . Allies | -11 -10 -10 -------- Run | Yrd Mat Min Total Allies . | . . . Largest Group . | . . . Highest-Rated Group . | . . . Highest-Rated Ally . | . . . Total Orders . | . . . Ally Attacks . | . . . Total Damage . | . . . Kills . | . . . Allies Corrupted . | . . . Allies Melted . | . . . Intel | -11 -10 -10 ------- Run | Yrd Mat Min Robot Analysis Total . | . . . Derelict Logs Recovered 1 | . . 1 Drone Launches . | . . . Drone Recoveries . | . . . Exploration | -11 -10 -10 ------------- Run | Yrd Mat Min Turns Passed 805 | 78 576 151 Spaces Moved 439 | 44 315 80 Core 19 | 13 6 . Treads 225 | 31 194 . Legs 195 | . 115 80 Wheels . | . . . Hover . | . . . Flight . | . . . Fastest Speed 50 | 50 100 120 Average Speed 142 | 127 144 142 Slowest Speed 190 | 160 160 190 Overloaded Moves . | . . . Propulsion Burnouts . | . . . Robots Hopped . | . . . Cave-ins Triggered . | . . . Exploration Rate (%) 21 | 5 42 18 Regions Visited 2 Branch Regions 1 Pre-discovered Areas . | . . . Known Exits Taken . | . . . Unknown Exits Taken 2 | 1 1 . Scrap Searched 1 | . . 1 Spaces Dug . | . . . Terrain Destroyed 30 | . . 30 Melee . | . . . Projectile . | . . . AOE 30 | . . 30 Terrain Rammed . | . . . Walls Destroyed . | . . . Machines Disabled . | . . . Actions | -11 -10 -10 --------- Run | Yrd Mat Min Total 541 | 61 380 100 Wait 11 | . 11 . Move 437 | 43 314 80 Hop . | . . . Pick Up 18 | 8 9 1 Fast Attach . | . . . Attach 13 | 7 5 1 Detach . | . . . Swap 2 | . 2 . Drop . | . . . Fire 60 | 3 39 18 Melee . | . . . Ram . | . . . Kick . | . . . Crush . | . . . Escape Stasis . | . . . Rewire . | . . . Trap . | . . . Miscellaneous . | . . . Route ------- -11/Scrapyard -10/Materials -10/Mines History --------- Turn | Location | Event 5 | -11/Scrapyard | Discovered new exit (range 15) 79 | -11/Scrapyard | Entered Materials 307 | -10/Materials | Build established: Mutant 496 | -10/Materials | Core integrity fell below 50% 520 | -10/Materials | Lost 5 parts (1p2n2w) 630 | -10/Materials | Discovered new exit (range 10) 655 | -10/Materials | Entered Mines 783 | -10/Mines | Core integrity fell below 20% 792 | -10/Mines | Assembled infested the area 794 | -10/Mines | Learned Materials terminal intel 806 | -10/Mines | Met 8R-AWN 806 | -10/Mines | Destroyed by as-37726 with Assembled Blade Last Messages --------------- Acquired derelict log, extracted data. Data stored: Materials terminal intel. Destroyed Asb. Hover Unit. as-92169 destroyed. as-85675 destroyed. The unstable cave ceiling collapses. HV Slug penetrates as-27287. as-27287 suffers critical hit (Destroy). HV Slug penetrates Earth. 8R-AWN: Hm, I'm not getting any readings that show these Assembled are different than what we have already... But you... you look interesting. Maybe they'll want to see you. Come along little bot, it's safer with us than out here, anyway. as-08200 destroyed. as-00389 destroyed. as-60724 destroyed. as-75318 destroyed. Map ----- +----------------------------------------------------+ | ?????????????????????????????????????? | | ?????????????????????????????????????? | | ?????????????????????????????????????? | | ?????????????????????????????????????? | | ?????????????????????????????????????? | | ?????????????????????????????????????? | | ?????????????????????????????????????? | | ?????????????????????????????????????? | | ?????????????????????????????????????? | | ?????????????????????????????????????? | | ?????????????????????????????????????? | | ?????????????????????????????????????? | | ?????? ????????????????????????????? | | ???? < #???????????????????????????? | | ??? g #??????????????????????????? | | ???? a ??????????????????????????? | | ????? a a #####?????????????????????? | | ?????? #?????????????????????? | | ??????# % ##?????#??????????????? | | ??????# % ????? ??????????????? | | ??????# % #???? #??????????????? | | ???????? a #???? #??????????????? | | ????????? % ????? #??????????????? | | ?????????? a ###### ##?????????????? | | ???????????# a ## *%= ##????????????? | | ???????????# @ ## ["= #????????????? | | ????????# ## ### #???###??????? | | ????????# #???# ??????? | | ????????####### # [ #???# #??????? | | ??????????????# ## = #???# #??????? | | ??????????????# % ###???# #??????? | | ??????????????### % #????## #??????? | | ????????????????### |##???## ##??#### | | ??????????????????# ###### #### # | | ??????????????????# | | ??????????????????# | | ??????????????????# ####### ## % | | ??????????????????# #?????## #####= | | ??????????????????# ??????## ##???# | | ??????????????????###???????####????#! | | ????????????????????????????????????# | | ????????????????????????????????????# | | ????????????????????????????????????# | | ????????????????????????????????????## | | ?????????????????????????????????????? | | ?????????????????????????????????????? | | ?????????????????????????????????????? | | ?????????????????????????????????????? | | ?????????????????????????????????????? | | | +----------------------------------------------------+ Best States ------------- Heat Dissipation 25 Energy Generation 10 Energy Capacity 250 Matter Stores 300 Matter Capacity 300 Sight Range 16 Terrain Scan Density 10 Power Shielding 33 Evasion (%) 55 Recoil Reduction 2 Item Schematics ----------------- None Robot Schematics ------------------ None Fabricated ------------ Nothing Alien Tech Used ----------------- None Achievements -------------- None Challenges ------------ None Game ------ Seed SwarmWeaponArchive Manual? 0 Play Time 00:11:30 Cumulative 1.4 hours Start 2025.01.10 @ 19:26:10 End 2025.01.10 @ 20:21:02 Sessions 1 Manual Loads 0 Difficulty Rogue Special Mode None Game No. 4 Rogue 4 Adventurer 0 Explorer 0 Win Type - Total 0 Types 0/0/0/0/0/0/0/0/0 Lore% 3 Gallery% 3 Achievement% 7 Wizard Run 0 Options --------- Layout 1 ASCII 0 Keyboard 0 Movement Mouse Keybinds 0 Fullscreen 2 Font 32/SmallcapsGlow Map View 50x35 Zoom Use 0% Tactical HUD 0 Map Filters NONE Filters NONE Steam 1 RUN: b58621dc-2e37-403d-b3d6-2f3cddc9e531